fUSD/lending_fUSD_20240116
["ID","MTS","AMOUNT","RATE_DAILY","PERIOD"]
[311809222,1705421386951,979.43084688,0.00022,2]
[311809223,1705421421676,152.9,0.00021419,2]
[311809238,1705421432607,-2306.13754497,0.00022002,2]
[311809239,1705421432617,-177.43,0.00022049,2]
[311809241,1705421432627,-155.87221421,0.00022102,2]
[311809243,1705421432636,-177.43,0.00022108,2]
[311809245,1705421432646,-150.0,0.00022156,2]
[311809246,1705421432656,-7113.37746671,0.00022157,2]
[311809249,1705421432676,-1759.97686169,0.00022157,2]
[311809251,1705421432687,-753.8500003,0.00022157,2]
[311809254,1705421432703,-293.25591016,0.00022157,2]
[311809256,1705421432715,-12681.57356605,0.00022157,2]
[311809258,1705421432727,-156.90027062,0.00022158,2]
[311809259,1705421432736,-177.43,0.00022168,2]
[311809261,1705421432746,-384.09617055,0.00022198,2]
[311809263,1705421432764,-531.34657846,0.00022198,2]
[311809264,1705421432776,-740.74445936,0.00022198,2]
[311809265,1705421432790,-132.07279163,0.00022198,2]
[311809267,1705421432800,-1903.58,0.00022227,2]
[311809268,1705421432808,-761.99,0.00022227,2]
[311809270,1705421432817,-499.99,0.00022227,2]
[311809272,1705421432827,-999.99,0.00022227,2]
[311809274,1705421432836,-177.43,0.00022227,2]
[311809276,1705421432846,-729.35,0.00022235,2]
[311809277,1705421432855,-150.99,0.00022235,2]
[311809278,1705421432865,-3644.60720837,0.00022235,2]
[311809279,1705421432962,-1638.91926737,0.00022235,2]
[311809280,1705421432974,-6900.24894205,0.00022235,2]
[311809281,1705421432986,-462.41613795,0.00022235,2]
[311809282,1705421432997,-8227.31844426,0.00022235,2]
[311809283,1705421433007,-719.3,0.00022277,2]
[311809284,1705421433017,-177.43,0.00022287,2]
[311809285,1705421433026,-2034.56661064,0.00022305,2]
[311809300,1705421438324,-588.31503461,0.00022305,2]
[311809302,1705421438336,-2650.33835475,0.00022305,2]
[311809303,1705421438345,-190.05850524,0.00022305,2]
[311809304,1705421438357,-699.0577829,0.00022305,2]
[311809305,1705421438368,-928.04721186,0.00022305,2]
[311809306,1705421438378,-197.67779414,0.00022309,2]
[311809307,1705421438394,-150.18270586,0.00022309,2]
[311809308,1705421438404,-205.8403,0.00022309,2]
[311809309,1705421438413,-12193.5114,0.00022309,2]
[311809310,1705421438423,-813.0434,0.0002231,2]
[311809311,1705421438432,-177.43,0.00022346,2]
[311809312,1705421438441,-177.43,0.00022406,2]
[311809313,1705421438450,-16129.32459706,0.00022406,2]
[311809382,1705421439388,-3935.13371089,0.00022406,2]
[311809384,1705421439399,-180.23354411,0.00022406,2]
[311809386,1705421439410,-229.95979743,0.00022406,2]
[311809388,1705421439420,-155.73208623,0.00022406,2]
[311809391,1705421439431,-344.96067242,0.00022406,2]
[311809393,1705421439442,-383.57328564,0.00022406,2]
[311809394,1705421439454,-528.20860531,0.00022406,2]
[311809396,1705421439464,-155.0,0.00022406,2]
[311809399,1705421439473,-196.37114886,0.00022406,2]
[311809401,1705421439483,-174.94679052,0.00022406,2]
[311809403,1705421439492,-156.40324003,0.00022406,2]
[311809405,1705421439502,-191.64869268,0.00022406,2]
[311809407,1705421439511,-156.58496978,0.00022406,2]
[311809409,1705421439529,-160.31929137,0.00022406,2]
[311809411,1705421439539,-192.07659376,0.00022406,2]
[311809413,1705421439552,-197.60943847,0.00022406,2]
[311809414,1705421439562,-543.025035,0.00022408,2]
[311809416,1705421439572,-348.35164608,0.00022408,2]
[311809417,1705421439585,-208.24386916,0.00022408,2]
[311809418,1705421439595,-3141.15835728,0.00022408,2]
[311809419,1705421439606,-2192.98063809,0.00022408,2]
[311809420,1705421439617,-292.37474055,0.00022408,2]
[311809421,1705421439627,-4619.12870269,0.00022408,2]
[311809422,1705421439637,-471.07690695,0.00022409,2]
[311809423,1705421439648,-697.37000914,0.00022409,2]
[311809424,1705421439658,-2136.56884156,0.00022409,2]
[311809425,1705421439668,-247.76499556,0.00022409,2]
[311809426,1705421439678,-277.35892287,0.00022409,2]
[311809427,1705421439689,-158.51725912,0.00022409,2]
[311809428,1705421439699,-499.73978826,0.00022409,2]
[311809429,1705421439710,-5372.09866929,0.00022409,2]
[311809430,1705421439721,-3502.69998965,0.00022409,2]
[311809431,1705421439732,-366.74409625,0.00022439,2]
[311809432,1705421439743,-326.67222837,0.00022439,2]
[311809433,1705421439755,-247.17065983,0.00022439,2]
[311809434,1705421439765,-347.76869444,0.00022439,2]
[311809435,1705421439775,-299.23845759,0.00022439,2]
[311809436,1705421439785,-405.9212378,0.00022439,2]
[311809437,1705421439797,-362.28007638,0.0002244,2]
[311809438,1705421439807,-245000.0,0.00022441,2]
[311809439,1705421439816,-177.43,0.00022465,2]
[311809440,1705421439827,-177.43,0.00022525,2]
[311809441,1705421439837,-558.15325618,0.00022528,2]
[311809442,1705421439847,-156.9002706,0.00022529,2]
[311809443,1705421439857,-62995.0,0.00022542,2]
[311809444,1705421439866,-177.43,0.00022584,2]
[311809445,1705421439876,-473.64577578,0.00022641,2]
[311809446,1705421439885,-183.91154665,0.00022641,2]
[311809447,1705421439896,-400.25276388,0.00022641,2]
[311809448,1705421439906,-155.0,0.00022641,2]
[311809449,1705421439916,-541.77348308,0.00022641,2]
[311809450,1705421439926,-33355.37935014,0.00022641,2]
[311809451,1705421439936,-2527.24759868,0.00022641,2]
[311809452,1705421439946,-158.20515269,0.00022642,2]
[311809453,1705421439956,-177.43,0.00022644,2]
[311809454,1705421439965,-318.31330327,0.00022666,2]
[311809455,1705421439975,-255.74768049,0.00022667,2]
[311809456,1705421439984,-531.67628362,0.00022667,2]
[311809457,1705421439994,-18937.12709548,0.00022667,2]
[311809458,1705421440005,-313.38914386,0.00022667,2]
[311809459,1705421440015,-2893.51434894,0.00022667,2]
[311809460,1705421440025,-732.45515218,0.0002267,2]
[311809461,1705421440035,-732.45515211,0.00022691,2]
[311809462,1705421440044,-177.43,0.00022703,2]
[311809463,1705421440054,-732.45515211,0.00022712,2]
[311809464,1705421440065,-732.45515211,0.00022733,2]
[311809465,1705421440075,-732.45515211,0.00022754,2]
[311809466,1705421440085,-177.43,0.00022763,2]
[311809467,1705421440096,-199.1114,0.00022765,2]
[311809468,1705421440106,-287.86707773,0.00022768,2]
[311809469,1705421440117,-732.45515211,0.00022775,2]
[311809470,1705421440127,-732.45515211,0.00022795,2]
[311809471,1705421440137,-709.58,0.00022816,2]
[311809472,1705421440147,-732.45515211,0.00022816,2]
[311809473,1705421440159,-177.43,0.00022822,2]
[311809474,1705421440168,-732.45515211,0.00022837,2]
[311809475,1705421440179,-732.45515211,0.00022858,2]
[311809476,1705421440188,-732.45515211,0.00022879,2]
[311809477,1705421440199,-165.85748834,0.0002289,2]
[311809478,1705421440209,-250.0,0.00022899,2]
[311809479,1705421440219,-732.45515211,0.000229,2]
[311809480,1705421440229,-156.9002706,0.000229,2]
[311809481,1705421440240,-165.57588177,0.000229,2]
[311809482,1705421440251,-554.60364303,0.000229,2]
[311809483,1705421440262,-612.1646586,0.000229,2]
[311809484,1705421440272,-174.61124344,0.000229,2]
[311809485,1705421440283,-152.58,0.000229,2]
[311809486,1705421440294,-10532.39817529,0.000229,2]
[311809487,1705421440304,-10532.39817524,0.000229,2]
[311809488,1705421440314,-842.88402709,0.000229,2]
[311809489,1705421440324,-10532.39817524,0.000229,2]
[311809490,1705421440333,-7367.954835,0.000229,2]
[311809491,1705421440355,-902.93415065,0.000229,2]
[311809492,1705421440381,-2261.50918959,0.000229,2]
[311809493,1705421440391,-1569.33728552,0.000229,2]
[311809494,1705421440404,-4513.6,0.000229,2]
[311809495,1705421440418,-951.26132272,0.000229,2]
[311809496,1705421440431,-455.23866117,0.000229,2]
[311809497,1705421440443,-350.26905264,0.000229,2]
[311809498,1705421440456,-362.29504428,0.000229,2]
[311809499,1705421440473,-4311.89413249,0.000229,2]
[311809500,1705421440484,-1548.89615002,0.000229,2]
[311809501,1705421440510,-2005.097984,0.000229,2]
[311809502,1705421440523,-2258.26716785,0.000229,2]
[311809503,1705421440551,-4720.13687337,0.000229,2]
[311809504,1705421440561,-10532.39817524,0.000229,2]
[311809505,1705421440571,-10532.39817524,0.000229,2]
[311809506,1705421440581,-4091.64939493,0.000229,2]
[311809507,1705421440594,-835.19141734,0.000229,2]
[311809513,1705421441226,-5605.55736297,0.000229,2]
[311809514,1705421441236,-10532.39817524,0.000229,2]
[311809515,1705421441246,-294.01874319,0.000229,2]
[311809516,1705421441259,-568.07990224,0.000229,2]
[311809517,1705421441271,-4489.1604,0.000229,2]
[311809518,1705421441283,-1467.29741007,0.000229,2]
[311809519,1705421441298,-1930.80257863,0.000229,2]
[311809520,1705421441310,-351.33923311,0.000229,2]
[311809521,1705421441322,-1431.699908,0.000229,2]
[311809522,1705421441331,-4634.66550129,0.000229,2]
[311809523,1705421441364,-5897.73267395,0.000229,2]
[311809524,1705421441374,-10532.39817524,0.000229,2]
[311809525,1705421441385,-10532.39817524,0.000229,2]
[311809526,1705421441395,-10532.39817524,0.000229,2]
[311809527,1705421441406,-10532.39817524,0.000229,2]
[311809528,1705421441416,-10532.39817524,0.000229,2]
[311809529,1705421441426,-10532.39817524,0.000229,2]
[311809530,1705421441435,-201.72079495,0.000229,2]
[311809531,1705421441445,-6104.08273336,0.0002298,2]
[311809532,1705421441458,-513.84877829,0.0002298,2]
[311809533,1705421441523,-379.00239166,0.0002298,2]
[311809534,1705421441536,-2890.29356339,0.0002298,2]
[311809535,1705421441549,-2413.58492939,0.0002298,2]
[311809536,1705421441559,-1069.95516284,0.0002299,2]
[311809537,1705421441569,-193.55445291,0.00022998,2]
[311809538,1705421441579,-563.05698065,0.00022998,2]
[311809539,1705421441588,-232.81085492,0.00022998,2]
[311809540,1705421441598,-162.57336469,0.00022998,2]
[311809541,1705421441608,-301.41093162,0.00022998,2]
[311809542,1705421441620,-155.0,0.00022998,2]
[311809544,1705421441631,-199.27000941,0.00022998,2]
[311809545,1705421441642,-286.70704989,0.00022998,2]
[311809546,1705421441653,-155.0,0.00022998,2]
[311809547,1705421441662,-155.40778752,0.00022998,2]
[311809548,1705421441673,-179.14904306,0.00022998,2]
[311809550,1705421441683,-242.97629324,0.00022998,2]
[311809551,1705421441693,-5690.6930067,0.00022998,2]
[311809552,1705421441704,-765.15555151,0.00022998,2]
[311809553,1705421441715,-2679.58189637,0.00022998,2]
[311809555,1705421441727,-819.68910007,0.00022998,2]
[311809556,1705421441751,-8789.99287899,0.00022998,2]
[311809557,1705421441761,-325.52219014,0.00022998,2]
[311809558,1705421441771,-203.61871638,0.00022998,2]
[311809559,1705421441782,-1049.80307113,0.00022998,2]
[311809560,1705421441792,-43.87586077,0.00022998,2]
[311809561,1705421441806,-276.29600004,0.00022998,2]
[311809562,1705421441819,-201.00569642,0.00022998,2]
[311809563,1705421441830,-363.55930349,0.00022999,2]
[311809564,1705421441842,-506.53059834,0.00022999,2]
[311809603,1705421443330,-445.00244877,0.00022898,2]
[311809605,1705421443346,-577.62897842,0.00022898,2]
[311809615,1705421443522,-105.16648372,0.00022898,2]
[311809616,1705421443532,-2047.87881747,0.00022999,2]
[311809617,1705421443542,-2937.00018677,0.00022999,2]
[311809618,1705421443554,-1293.37780232,0.00022999,2]
[311809619,1705421443675,-8725.57063337,0.00022999,2]
[311809650,1705421446605,-10532.39817524,0.000229,2]
[311809651,1705421446615,-1196.18364435,0.00022979,2]
[311809652,1705421446625,-1623.7467797,0.00022999,2]
[311809653,1705421446634,-2617.16595295,0.00022999,2]
[311809654,1705421446644,-300.0,0.00022999,2]
[311809655,1705421446654,-300.0,0.00022999,2]
[311809656,1705421446663,-300.0,0.00022999,2]
[311809657,1705421446673,-300.0,0.00022999,2]
[311809658,1705421446682,-150.0,0.00022999,2]
[311809659,1705421446691,-300.0,0.00022999,2]
[311809660,1705421446701,-300.0,0.00022999,2]
[311809661,1705421446711,-150.0,0.00022999,2]
[311809662,1705421446721,-493883.19747262,0.00022999,2]
[311809664,1705421446755,-42602.24771594,0.00022999,2]
[311809670,1705421446799,-1774.74999999,0.00022999,2]
[311809672,1705421446811,-386.7855967,0.00022999,2]
[311809675,1705421446836,-19837.46234936,0.00022999,2]
[311809679,1705421446860,-13151.87351057,0.00022999,2]
[311809734,1705421497634,216.64,0.00021066,2]
[311810556,1705421661825,1000.0,0.00021,2]
[311810557,1705421687784,328.0,0.00021928,2]
[311810558,1705421880150,250.0,0.00021918,2]
[311810559,1705421943846,205.8,0.00019944,2]
[311810560,1705422012998,176.23885641,0.00021985,2]
[311810561,1705422087310,150.58,0.0002177,2]
[311810563,1705422154879,737.6,0.00021767,2]
[311810564,1705422163895,2157.841473,0.00021933,2]
[311810565,1705422195531,50529.00867649,0.00021933,2]
[311810566,1705422195589,1022.3924617,0.00021933,2]
[311810567,1705422203207,7420.31804541,0.00021933,2]
[311810568,1705422203340,360.9449622,0.00021933,2]
[311810569,1705422206152,543.89806023,0.00021933,2]
[311810570,1705422206271,155.0,0.00021933,2]
[311810571,1705422206480,283.01534388,0.00021933,2]
[311810572,1705422206569,15695.41125992,0.00021933,2]
[311810573,1705422207233,1598.92940259,0.00017546,2]
[311810574,1705422208527,532.09186655,0.00021933,2]
[311810575,1705422211545,1021.58845856,0.00021933,2]
[311810576,1705422213269,50529.00867649,0.00021933,2]
[311810577,1705422221215,7406.15539229,0.00021933,2]
[311810578,1705422221356,360.65139084,0.00021933,2]
[311810579,1705422221721,543.48262555,0.00021933,2]
[311810580,1705422221942,186.62869089,0.00021933,2]
[311810581,1705422222017,282.78531174,0.00021933,2]
[311810582,1705422222918,154.29,0.00021924,2]
[311810583,1705422226221,15683.13972292,0.00021933,2]
[311810584,1705422226513,534.21645018,0.00021933,2]
[311810585,1705422228032,1597.71719131,0.00017546,2]
[311810586,1705422238038,402.06588437,0.0001702,2]
[311810587,1705422238138,33340.31874745,0.00017546,2]
[311810588,1705422241602,291.93965338,0.00017546,2]
[311810589,1705422242360,155.0,0.0001974,2]
[311810590,1705422246590,1096.89549744,0.0002,2]
[311810591,1705422252522,1892.88295925,0.00017546,2]
[311810592,1705422253025,402.06588437,0.0001702,2]
[311810593,1705422253543,1598.92940259,0.00014037,2]
[311810594,1705422255427,2177.59399029,0.00017371,2]
[311810595,1705422256022,18955.80773847,0.00017546,2]
[311810596,1705422257339,5190.29776533,0.00017546,2]
[311810597,1705422260362,155.0,0.00017546,2]
[311810598,1705422260471,609.5088436,0.00021,2]
[311810599,1705422265974,532.96941508,0.00019,2]
[311810600,1705422266344,251.63244978,0.00015791,2]
[311810601,1705422266599,666.70430748,0.0002,2]
[311810602,1705422267602,291.701985,0.00017546,2]
[311810603,1705422273224,1597.71719131,0.00014037,2]
[311810604,1705422275336,3063.29363498,0.00017546,2]
[311810605,1705422278374,155.40021674,0.00017546,2]
[311810606,1705422279161,1934.36763966,0.0003,120]
[311810607,1705422282457,608.6197401,0.00021,2]
[311810608,1705422285940,533.44709128,0.00019,2]
[311810609,1705422286980,402.06588437,0.0001702,2]
[311810610,1705422290419,1891.34948283,0.00017546,2]
[311810611,1705422291586,2178.50693575,0.00017371,2]
[311810612,1705422293235,342.11852485,0.00014037,2]
[311810613,1705422296007,12187.30032487,0.00017546,2]
[311810614,1705422303052,220.8072301,0.0002037,2]
[311810615,1705422309417,2176.68104483,0.0002079,2]
[311810616,1705422331427,2173.71592225,0.0002079,2]
[311810617,1705422367173,195.51,0.00019895,2]
[311810618,1705422461885,1278.36,0.00021963,2]
[311810663,1705422632219,-153.53602793,0.00022141,2]
[311810664,1705422632230,-157.52605837,0.00022158,2]
[311810665,1705422632239,-195.51,0.00022159,2]
[311810666,1705422632248,-153.54,0.00022179,2]
[311810667,1705422632257,-154.10195709,0.00022241,2]
[311810668,1705422632267,-154.86,0.00022248,2]
[311810669,1705422632277,-732.64,0.00022293,2]
[311810670,1705422632286,-153.53602793,0.00022295,2]
[311810671,1705422632296,-300.0,0.0002234,2]
[311810672,1705422632306,-150.0,0.0002234,2]
[311810673,1705422632316,-463.95,0.00022341,2]
[311810674,1705422632327,-15.31641993,0.00022341,2]
[311810675,1705422632341,-266.24045612,0.00022341,2]
[311810676,1705422632357,-454.20312395,0.00022341,2]
[311810677,1705422632367,-719.26,0.00022341,2]
[311810678,1705422632379,-441.6266,0.00022341,2]
[311810679,1705422632390,-730.07,0.00022341,2]
[311810680,1705422632400,-44190.4712,0.00022341,2]
[311810681,1705422632411,-153.54,0.00022549,2]
[311810682,1705422632421,-711.11,0.00022767,2]
[311810683,1705422632432,-730.25,0.00022767,2]
[311810684,1705422632443,-9755.1891471,0.00022767,2]
[311810685,1705422632454,-443.2957,0.00022785,2]
[311810686,1705422632464,-488.9404,0.00022785,2]
[311810687,1705422632475,-1000.0,0.000228,2]
[311810688,1705422632485,-500.0,0.000228,2]
[311810689,1705422632496,-364.5612,0.000228,2]
[311810690,1705422632506,-543.53984193,0.000228,2]
[311810691,1705422632516,-543.53984189,0.00022814,2]
[311810692,1705422632526,-150.58,0.00022823,2]
[311810693,1705422632536,-543.53984189,0.00022829,2]
[311810694,1705422632547,-543.53984189,0.00022843,2]
[311810695,1705422632557,-543.53984189,0.00022857,2]
[311810696,1705422632567,-543.53984189,0.00022871,2]
[311810697,1705422632580,-19798.3865,0.00022885,2]
[311810698,1705422632590,-12693.05268853,0.00022885,2]
[311810699,1705422632603,-250.0,0.00022885,2]
[311810700,1705422632615,-532.8244694,0.00022885,2]
[311810701,1705422632628,-2365.25864744,0.00022885,2]
[311810702,1705422632641,-498.696,0.00022885,2]
[311810703,1705422632654,-443.83597126,0.00022885,2]
[311810704,1705422632667,-333.92943009,0.00022885,2]
[311810705,1705422632693,-5958.5,0.00022885,2]
[311810706,1705422632704,-968.45269273,0.00022885,2]
[311810707,1705422632716,-12250.50728428,0.00022885,2]
[311810714,1705422633010,-479.70601001,0.00022885,2]
[311810716,1705422633022,-1603.04621236,0.00022885,2]
[311810719,1705422633040,-662.815,0.00022885,2]
[311810721,1705422633052,-587.5153374,0.00022885,2]
[311810724,1705422633064,-25249.75769172,0.00022885,2]
[311810726,1705422633076,-10468.8,0.00022885,2]
[311810728,1705422633088,-4821.14686478,0.00022885,2]
[311810730,1705422633098,-944.40826674,0.00022885,2]
[311810732,1705422633108,-543.53984189,0.00022886,2]
[311810734,1705422633118,-944.40826673,0.0002289,2]
[311810736,1705422633128,-128.87348486,0.00022895,2]
[311810739,1705422633144,-326.39183576,0.00022895,2]
[311810741,1705422633153,-206.05337957,0.00022895,2]
[311810743,1705422633163,-944.40826673,0.00022895,2]
[311810745,1705422633171,-455.26532061,0.00022898,2]
[311810747,1705422633181,-206.05337957,0.00022898,2]
[311810749,1705422633190,-728.14,0.00022898,2]
[311810751,1705422633198,-2242.77160239,0.00022898,2]
[311810753,1705422633208,-155.14895346,0.00022898,2]
[311810754,1705422633218,-730.55,0.000229,2]
[311810757,1705422633228,-132.44526191,0.000229,2]
[311810762,1705422633272,-117.55473809,0.000229,2]
[311810764,1705422633281,-3375.74039394,0.000229,2]
[311810766,1705422633292,-445.00741825,0.000229,2]
[311810769,1705422633307,-1502.28437207,0.000229,2]
[311810778,1705422638187,-159.19,0.00022009,2]
[311810779,1705422638196,-153.53602793,0.00022449,2]
[311810780,1705422638205,-668.50448008,0.00022895,2]
[311810781,1705422638215,-21255.87099198,0.000229,2]
[311810782,1705422638227,-402.12299413,0.000229,2]
[311810783,1705422638238,-2853.91612875,0.000229,2]
[311810784,1705422638249,-939.37899748,0.000229,2]
[311810785,1705422638261,-868.95680594,0.000229,2]
[311810786,1705422638272,-8648.80758099,0.000229,2]
[311810787,1705422638283,-529.82133345,0.000229,2]
[311810788,1705422638310,-34840.90286476,0.000229,2]
[311810789,1705422638320,-159.70074971,0.000229,2]
[311810790,1705422638331,-3499.89303664,0.000229,2]
[311810791,1705422638342,-3499.89303664,0.000229,2]
[311810792,1705422638351,-3499.89303664,0.000229,2]
[311810793,1705422638361,-455.26532061,0.000229,2]
[311810794,1705422638370,-206.05337957,0.000229,2]
[311810795,1705422638380,-543.53984189,0.000229,2]
[311810796,1705422638389,-152.19,0.000229,2]
[311810797,1705422638398,-153.54,0.00022919,2]
[311810798,1705422638407,-80142.72745077,0.00022985,2]
[311810804,1705422638942,-87801.66980608,0.00022985,2]
[311810805,1705422638953,-1576.10650313,0.00022985,2]
[311810806,1705422638965,-13005.12856162,0.00022985,2]
[311810807,1705422638992,-650.53838168,0.00022985,2]
[311810808,1705422639012,-22421.00957323,0.00022985,2]
[311810809,1705422639023,-21376.43700282,0.00022985,2]
[311810819,1705422640641,-436962.77476289,0.00022985,2]
[311810820,1705422640650,-4474909.81530999,0.00022985,2]
[311810821,1705422640659,-2605.00000774,0.00022995,2]
[311810822,1705422640668,-155.0,0.00022995,2]
[311810823,1705422640678,-521.17755723,0.00022995,2]
[311810824,1705422640687,-155.0,0.00022996,2]
[311810825,1705422640696,-2820.85793042,0.00022997,2]
[311810826,1705422640706,-286.33384578,0.00022997,2]
[311810827,1705422640715,-378.13396296,0.00022997,2]
[311810828,1705422640724,-155.31524812,0.00022997,2]
[311810829,1705422640734,-155.0,0.00022997,2]
[311810830,1705422640743,-217.76361723,0.00022997,2]
[311810831,1705422640752,-523.20663738,0.00022997,2]
[311810832,1705422640761,-225.00754902,0.00022997,2]
[311810833,1705422640770,-1434.04271969,0.00022997,2]
[311810834,1705422640779,-17759.77334659,0.00022997,2]
[311810835,1705422640790,-179956.36643275,0.00022997,2]
[311810836,1705422640799,-1135.27978758,0.00022997,2]
[311810837,1705422640809,-94773.30749173,0.00022997,2]
[311810838,1705422640818,-231.84627581,0.00022997,2]
[311810839,1705422640828,-155.22664379,0.00022997,2]
[311810840,1705422640837,-12289.26387543,0.00022997,2]
[311810841,1705422640845,-2264.82696154,0.00022997,2]
[311810842,1705422640854,-4154.76443991,0.00022998,2]
[311810843,1705422640863,-2000.0,0.00022999,2]
[311810844,1705422640873,-200.0,0.00022999,2]
[311810845,1705422640883,-200.0,0.00022999,2]
[311810846,1705422640893,-300.0,0.00022999,2]
[311810847,1705422640903,-300.0,0.00022999,2]
[311810848,1705422640912,-345.9925142,0.00022999,2]
[311810849,1705422640921,-300.0,0.00022999,2]
[311810850,1705422640930,-2046068.54482129,0.00023,2]
[311810870,1705422643068,-250.0,0.00022885,2]
[311810871,1705422643080,-138.93617367,0.00023,2]
[311810872,1705422643095,-479.42152947,0.00023,2]
[311810873,1705422643106,-618.16013871,0.00023,2]
[311810874,1705422643131,-505.04153408,0.00023,2]
[311810875,1705422643161,-579.82013304,0.00023,2]
[311810876,1705422643176,-1768.28424568,0.00023,2]
[311810877,1705422643187,-674.27247457,0.00023,2]
[311810890,1705422645645,-157.52605837,0.00022999,2]
[311810891,1705422645655,-1322.81071072,0.00023,2]
[311810892,1705422645701,-409.248,0.00023,2]
[311810893,1705422645712,-6086.18010155,0.00023,2]
[311810894,1705422645731,-261.91686517,0.00023,2]
[311810895,1705422645804,-400.57,0.00023,2]
[311810896,1705422645817,-2551.09999999,0.00023,2]
[311810897,1705422645831,-1891.70394769,0.00023,2]
[311810898,1705422645842,-731.53118823,0.00023,2]
[311810900,1705422651801,3124.2773342,0.00021848,2]
[311810901,1705422669682,155.0,0.0002,2]
[311810902,1705422673286,155.72027097,0.00020698,2]
[311810903,1705422677159,155.4056809,0.00020698,2]
[311810904,1705422677822,235.6930786,0.00021848,2]
[311810905,1705422691670,155.0,0.0002,2]
[311810906,1705422707666,155.75403448,0.0002,2]
[311810907,1705422729372,959.0,0.000288,120]
[311810908,1705422767747,5719.0,0.00022,2]
[311810909,1705422827281,217.8,0.00020139,2]
[311810910,1705422879268,250.0,0.00021918,2]
[311810911,1705422935786,250.0,0.0002186,2]
[311810912,1705423079321,500.0,0.00021687,2]
[311810913,1705423187355,161.47,0.00021638,2]
[311810914,1705423258352,206.91,0.00019773,2]
[311810915,1705423265575,350.95,0.00021999,2]
[311810916,1705423274601,288.24,0.00021689,2]
[311810917,1705423285316,162.7,0.00021852,2]
[311810918,1705423285551,162.7,0.00021994,2]
[311810919,1705423298230,590.08,0.00021665,2]
[311810920,1705423341447,50510.78554689,0.00021689,2]
[311810921,1705423345450,212.1575122,0.00021689,2]
[311810922,1705423351383,155.4232274,0.00021665,2]
[311810923,1705423351599,7672.98518074,0.00021557,2]
[311810924,1705423351894,500.0,0.00021665,2]
[311810925,1705423352395,15689.27549142,0.00021665,2]
[311810926,1705423352885,208.84882825,0.00021665,2]
[311810927,1705423353387,198.21015724,0.00021665,2]
[311810928,1705423353530,2176.62447328,0.00021448,2]
[311810929,1705423354045,283.9508442,0.00021665,2]
[311810930,1705423354093,3207.3814279,0.00022,2]
[311810931,1705423354250,6077.73592096,0.00021665,2]
[311810932,1705423354431,844.80069332,0.00021665,2]
[311810933,1705423354911,197.90319934,0.00021665,2]
[311810934,1705423355128,401.90417909,0.00021015,2]
[311810935,1705423355501,5186.35262149,0.00021665,2]
[311810936,1705423356127,282.90032781,0.00021665,2]
[311810937,1705423357001,531.87539742,0.00021665,2]
[311810938,1705423357749,291.71338211,0.00021665,2]
[311810939,1705423360157,155.0,0.00021665,2]
[311810940,1705423361631,156.62101118,0.00021665,2]
[311810941,1705423361701,1021.99046013,0.00021665,2]
[311810942,1705423361930,155.61091892,0.00021665,2]
[311810943,1705423362717,1096.4632242,0.00021665,2]
[311810944,1705423363639,854.32637403,0.00021665,2]
[311810945,1705423363727,1598.92940259,0.00017332,2]
[311810946,1705423364061,155.0,0.00021665,2]
[311810947,1705423364472,155.0,0.00021665,2]
[311810948,1705423364640,155.31103313,0.00021665,2]
[311810949,1705423365623,884.27245016,0.00021665,2]
[311810950,1705423365930,155.0,0.00021665,2]
[311810951,1705423370103,532.13205427,0.00021665,2]
[311810952,1705423370132,282.4706336,0.00021665,2]
[311810953,1705423370365,155.08480032,0.00021665,2]
[311810954,1705423371201,600.63263389,0.00021665,2]
[311810955,1705423372692,532.09186655,0.00021665,2]
[311810956,1705423373098,1032.77891752,0.00021665,2]
[311810957,1705423373130,401.60215391,0.00021015,2]
[311810958,1705423374132,282.90032781,0.00021665,2]
[311810959,1705423375672,155.0,0.00021665,2]
[311810960,1705423375875,3207.3814279,0.00022,2]
[311810961,1705423377322,159.06673157,0.00021665,2]